Cogmind - Beta 10.2 @@@ ROGUE MODE // 2021.04.04 @ 14:28:17 Player: gammafunk Result: Destroyed by D-53 Grenadier with Mini Grenade Launcher Performance ------------- Evolutions (0) 0 Regions Visited (2) 400 Robots Destroyed (22) 110 Value Destroyed (558) 558 Prototype IDs (4) 80 Alien Tech Used (0) 0 Bonus (0) 0 TOTAL SCORE: 1148 Bonus ------- None Cogmind --------- Core Integrity 0/250 Matter 300/300 Energy 100/100 System Corruption 4% Temperature Cool (0) Movement Treading (160) Location -10/Mines Parts ------- > --- POWER (1) -------- (None) > --- PROPULSION (2) --- Light Treads Light Treads > --- UTILITY (2) ------ High-capacity Storage Unit > --- WEAPON (2) ------- Light Assault Rifle > --- INVENTORY (12) --- Improved Ion Engine Light Treads Light Treads High-capacity Storage Unit Weapon Shielding Light Armor Plating Light Assault Rifle Light Assault Rifle Light Assault Rifle Light Assault Rifle Mining Laser Peak State ------------ > --- POWER ------------ Improved Ion Engine > --- PROPULSION ------- Light Treads Light Treads > --- UTILITY ---------- High-capacity Storage Unit Weapon Shielding > --- WEAPON ----------- Assault Rifle Light Assault Rifle > --- INVENTORY -------- Ion Engine Light Ion Engine Light Treads High-capacity Storage Unit Weapon Shielding Tractor Beam Light Assault Rifle Light Assault Rifle Light Assault Rifle Light Assault Rifle Light Assault Rifle Light Assault Rifle [Rating: 9] Favorites ----------- Power Ion Engine Engine Ion Engine Propulsion Light Treads Treads Light Treads Utility Weapon Shielding Device Tractor Beam Storage High-capacity Storage Unit Protection Weapon Shielding Weapon Assault Rifle Ballistic Gun Assault Rifle Build | -11 -10 -10 ------- Run | Scr Mat Min Slots Evolved . | . . . Power . | . . . Propulsion . | . . . Utility . | . . . Weapon . | . . . Parts Attached 25 | 7 13 5 Power 4 | 1 3 . Engine 4 | 1 3 . Core . | . . . Reactor . | . . . Propulsion 7 | 2 3 2 Treads 7 | 2 3 2 Leg . | . . . Wheel . | . . . Hover . | . . . Flight . | . . . Utility 7 | 2 4 1 Device 1 | 1 . . Storage 4 | 1 3 . Processor . | . . . Hackware . | . . . Protection 2 | . 1 1 Artifact . | . . . Weapon 7 | 2 3 2 Energy Gun . | . . . Energy Cannon . | . . . Ballistic Gun 7 | 2 3 2 Ballistic Cannon . | . . . Launcher . | . . . Special Weapon . | . . . Impact Weapon . | . . . Slashing Weapon . | . . . Piercing Weapon . | . . . Special Melee Weapon . | . . . Unidentified Prototypes . | . . . Parts Lost 4 | . . 4 Power 1 | . . 1 Propulsion . | . . . Utility 1 | . . 1 Weapon 2 | . . 2 Highest Loss Streak 3 | . . 3 Average Slot Usage (%) 99 | . 99 99 Engine 14 | . 14 14 Treads 28 | . 28 28 Storage 14 | . 14 14 Protection 13 | . 13 13 Ballistic Gun 28 | . 28 28 Naked Turns . | . . . Heaviest Build 45 | 13 43 45 Greatest Support 40 | 40 40 40 Greatest Overweight (x) 1 | . 1 1 Average Overweight (x) . | . . . Largest Inventory Capacity 12 | 6 12 12 Average Capacity 10 | 5 10 12 Most Carried 12 | 2 12 12 Average Carried 9 | 1 9 11 Final Capacity 12 | 6 12 12 Final Carried 12 | 2 12 11 Class Distribution -------------------- 100% | Mutant Dominant Class ---------------- Mutant | -10/Materials Mutant | -10/Mines Resources | -11 -10 -10 ----------- Run | Scr Mat Min Matter Collected 794 | 282 358 154 Remotely 41 | 41 . . Salvage Created 916 | 96 555 265 Parts 52 | 1 36 15 Haulers Intercepted 2 | . 2 . Recyclers Shooed . | . . . Parts Field Recycled . | . . . Retrieved Matter . | . . . Parts Self-Destructed . | . . . Prevented . | . . . Kills | -11 -10 -10 ------- Run | Scr Mat Min Combat Hostiles Destroyed 14 | . 9 5 Guns 14 | . 9 5 Classes Destroyed 7 | 1 5 1 Hauler 2 | . 2 . Recycler 2 | 1 1 . Operator 1 | . 1 . Watcher 3 | . 3 . Swarmer 3 | . 3 . Grunt 9 | . 6 3 Sentry 2 | . . 2 Best Kill Streak 3 | 1 3 2 Combat Bots Only 2 | . 2 2 Max Kills in Single Turn 1 | 1 1 1 Gunslinging . | . . . Exploded . | . . . Melee . | . . . Uniques/NPCs Destroyed . | . . . Combat | -11 -10 -10 -------- Run | Scr Mat Min Damage Taken 1193 | . 379 814 Core 262 | . 81 181 Absorbed by Shields . | . . . Core Remaining (%) 100 | 100 . . Volleys Fired 70 | 3 42 25 Largest 2 | 2 2 2 Hottest 40 | 40 40 40 Shots Fired 140 | 6 84 50 Gun 140 | 6 84 50 Cannon . | . . . Launcher . | . . . Special . | . . . Kinetic 140 | 6 84 50 Thermal . | . . . Explosive . | . . . Electromagnetic . | . . . Robot Hit Streak 21 | 2 21 14 Robot Miss Streak 3 | 1 3 3 Penetration Max . | . . . Secondary Targets 1 | . 1 . Max Gunslinging Chain 1 | . 1 . Shots Hit Robots 96 | 4 57 35 Core Hits 41 | 1 26 14 Critical Hits 2 | 1 . 1 Critical Kills 2 | 1 . 1 Critical Parts Destroyed . | . . . Melee Attacks . | . . . Impact . | . . . Slashing . | . . . Piercing . | . . . Sneak Attacks . | . . . Combat Hostiles . | . . . Follow-up Attacks . | . . . Damage Inflicted 1046 | 43 716 287 Guns 1028 | 43 707 278 Cannons . | . . . Explosions . | . . . Melee . | . . . Ramming 18 | . 9 9 Kinetic 1028 | 43 707 278 Thermal . | . . . Explosive . | . . . Electromagnetic . | . . . Impact . | . . . Slashing . | . . . Piercing . | . . . Highest Corruption 4 | . 4 4 Average Corruption 2 | . 2 4 Corruption Purged . | . . . Effects 35 | . 18 17 Message Errors 12 | . 8 4 Matter Fused 7 | . 1 6 Heat Flow Errors 3 | . 3 . Energy Discharges 1 | . . 1 Data Loss (minor) 7 | . 4 3 Targeting Errors 5 | . 2 3 Overload Shots . | . . . Overflow Damage . | . . . Projectiles . | . . . Explosions . | . . . Melee . | . . . Knockbacks . | . . . Impact . | . . . Kinetic . | . . . Secondary . | . . . Self-Inflicted Damage . | . . . Shots . | . . . Rammed 5 | . 4 1 Targets Rammed 6 | . 5 1 Kicked . | . . . Crushed 1 | . 1 . Highest Temperature 242 | . 242 74 Average Temperature 43 | . 72 21 Received Heat Transfer 452 | . 180 272 Siege Activations . | . . . Robots Corrupted . | . . . Combat Hostiles . | . . . Parts Fried . | . . . Impact Corruptions . | . . . Robots Melted . | . . . Combat Hostiles . | . . . Parts Melted . | . . . Heat Transferred . | . . . Parts Sabotaged . | . . . Parts Stolen . | . . . Parts Stripped . | . . . Power Chain Reactions . | . . . Missiles Intercepted . | . . . Alert | -11 -10 -10 ------- Run | Scr Mat Min Peak Influence 148 | 5 148 130 Initial 6 | . 3 6 Average 47 | 1 50 46 Maximum Alert Level . | . . . Low Security (%) 100 | 100 100 100 Level 1 . | . . . Level 2 . | . . . Level 3 . | . . . Level 4 . | . . . Level 5 . | . . . High Security . | . . . Max Security . | . . . Squads Dispatched 1 | . 1 . Investigation . | . . . Extermination . | . . . Reinforcement 1 | . 1 . Assault . | . . . Garrison . | . . . Intercept . | . . . Construction Impeded . | . . . Haulers Reinforced . | . . . Stealth | -11 -10 -10 --------- Run | Scr Mat Min Distress Signals 2 | . 2 . Communications Jammed . | . . . Distress Signals . | . . . Times Spotted 41 | . 19 22 Peak Tracking Total 9 | . 3 9 Tactical Retreats 5 | . 1 4 Traps | -11 -10 -10 ------- Run | Scr Mat Min Traps Triggered 4 | . 4 . Indirectly . | . . . Trap Hack Attempts . | . . . Triggered . | . . . Disarmed . | . . . Reprogrammed . | . . . Reused . | . . . Traps Extracted . | . . . Installed . | . . . Triggered . | . . . Machines | -11 -10 -10 ---------- Run | Scr Mat Min Machines Disabled . | . . . Max in Single Turn . | . . . Machines Sabotaged . | . . . Garrisons Compromised . | . . . Overloaded Fab Kills . | . . . Fab Network Shutdowns . | . . . Hacking | -11 -10 -10 --------- Run | Scr Mat Min Machines Accessed 8 | . 8 . Terminals 6 | . 6 . Fabricators . | . . . Repair Stations . | . . . Recycling Units 2 | . 2 . Scanalyzers . | . . . Garrison Access . | . . . Total Hacks 24 | . 24 . Successful 13 | . 13 . Failed 11 | . 11 . Catastrophic 1 | . 1 . Database Lockouts . | . . . Manual 13 | . 13 . Terminals 20 | . 20 . Fabricators . | . . . Repair Stations . | . . . Recycling Units 4 | . 4 . Scanalyzers . | . . . Garrison Access . | . . . Terminal Hacks 9 | . 9 . Robot Analysis 4 | . 4 . Prototype ID Bank 2 | . 2 . Terminal Index 1 | . 1 . Locate Traps 1 | . 1 . Hauler Manifests 1 | . 1 . Fabricator Hacks . | . . . Repair Station Hacks . | . . . Recycling Unit Hacks 1 | . 1 . Retrieve Components 1 | . 1 . Scanalyzer . | . . . Garrison Access Hacks . | . . . Unauthorized Hacks 3 | . 3 . Terminals 3 | . 3 . Botnet 3 | . 3 . Fabricators . | . . . Repair Stations . | . . . Recycling Units . | . . . Scanalyzers . | . . . Garrison Access . | . . . Data Cores Recovered 1 | . 1 . Used 1 | . 1 . Hacking Detections 7 | . 7 . Full Trace Events . | . . . Feedback Events . | . . . Feedback Blocked . | . . . Robot Schematics Acquired . | . . . Robots Built . | . . . Matter . | . . . Time . | . . . Total Robot Build Rating . | . . . Part Schematics Acquired . | . . . Parts Built . | . . . Matter . | . . . Time . | . . . Total Part Build Rating . | . . . Parts Repaired . | . . . Time . | . . . Parts Recycled . | . . . Recycled Matter . | . . . Retrieved Matter . | . . . Retrieved Components 9 | . 9 . Parts Scanalyzed . | . . . Part Schematics Acquired . | . . . Parts Damaged . | . . . Bothacking | -11 -10 -10 ------------ Run | Scr Mat Min Used RIF Installer . | . . . Robots Hacked . | . . . Non-combat . | . . . Combat . | . . . Robot Hacks Applied . | . . . Relay Couplers Released . | . . . Robots Rewired . | . . . Allies Hacked . | . . . Hacks Repelled . | . . . Allies | -11 -10 -10 -------- Run | Scr Mat Min Total Allies . | . . . Largest Group . | . . . Highest-Rated Group . | . . . Highest-Rated Ally . | . . . Total Orders . | . . . Ally Attacks . | . . . Total Damage . | . . . Kills . | . . . Allies Corrupted . | . . . Allies Melted . | . . . Intel | -11 -10 -10 ------- Run | Scr Mat Min Robot Analysis Total 4 | . 4 . Derelict Logs Recovered 1 | . . 1 Drone Launches . | . . . Drone Recoveries . | . . . Exploration | -11 -10 -10 ------------- Run | Scr Mat Min Turns Passed 2335 | 91 1483 761 Spaces Moved 1204 | 46 789 369 Core 2 | 2 . . Treads 1202 | 44 789 369 Legs . | . . . Wheels . | . . . Hover . | . . . Flight . | . . . Fastest Speed 50 | 50 160 160 Average Speed 167 | 155 162 179 Slowest Speed 180 | 160 180 180 Overloaded Moves . | . . . Propulsion Burnouts . | . . . Robots Hopped . | . . . Cave-ins Triggered . | . . . Exploration Rate (%) 54 | 5 97 61 Regions Visited 2 Branch Regions 1 Pre-discovered Areas . | . . . Known Exits Taken . | . . . Unknown Exits Taken 2 | 1 1 . Scrap Searched 1 | . . 1 Spaces Dug . | . . . Terrain Destroyed . | . . . Melee . | . . . Projectile . | . . . AOE . | . . . Terrain Rammed . | . . . Walls Destroyed . | . . . Machines Disabled . | . . . Actions | -11 -10 -10 --------- Run | Scr Mat Min Total 1393 | 57 907 429 Wait 55 | . 39 16 Move 1202 | 45 788 369 Hop . | . . . Pick Up 15 | 2 8 5 Fast Attach 10 | 7 2 1 Attach 1 | . . 1 Detach 2 | . 2 . Swap 14 | . 11 3 Drop 18 | . 10 8 Fire 70 | 3 42 25 Melee . | . . . Ram . | . . . Kick . | . . . Crush 6 | . 5 1 Escape Stasis . | . . . Rewire . | . . . Trap . | . . . Miscellaneous . | . . . Route ------- -11/Scrapyard -10/Materials (discovered 5 exits: [*Mat x3] / [*Min x2]) -10/Mines (discovered 2 exits: [*Mat] / Exi) History --------- Turn | Location | Event 50 | -11/Scrapyard | Discovered new exit (range 14) 92 | -11/Scrapyard | Entered Materials 312 | -10/Materials | Build established: Mutant 494 | -10/Materials | Discovered new exit (range 15) 540 | -10/Materials | Discovered new exit (range 16) 981 | -10/Materials | Discovered new exit (range 12) 1174 | -10/Materials | Discovered new exit (range 10) 1383 | -10/Materials | Discovered new exit (range 16) 1575 | -10/Materials | Entered Mines 1875 | -10/Mines | Discovered new exit (range 7) 1968 | -10/Mines | Identified exit to Exiles 2042 | -10/Mines | Deemed a non-threat by the Exiles lab entrance 2244 | -10/Mines | Core integrity fell below 50% 2291 | -10/Mines | Assembled infested the area 2296 | -10/Mines | Assisted by a Guerilla fighting off Assembled 2336 | -10/Mines | Core integrity fell below 20% 2336 | -10/Mines | Destroyed by D-53 Grenadier with Mini Grenade Launcher Last Messages --------------- HV Slug penetrates as-48383. as-48383 destroyed. TP-Z1U(h) shuts down. as-12862 sneak attacks. as-28680 sneak attacks. as-12862 sneak attacks. as-28680 sneak attacks. TP-Z1U(h) Flexi-carbon Leg severed. WWGP as-68518 destroyed. as-28680 destroyed. as-91014 destroyed. Lgt. Assault Rifle destroyed. Imp. Ion Engine destroyed. The unstable cave ceiling collapses. Map ----- +----------------------------------------------------+ | ### ##?????????# #???######! """ #????????? | | #?# #??????????# #????????# """ #????????? | | #### = ##?????????# #???????? #????????? | | #?### ###???????# #??????? ##????????? | | #???## ######### ##### ## #?????????? | | #????## ## ### ##?????????? | | #?????## ## ##### # ???###??????????? | | ##??????#! #???##### ##### ????????????????? | | #??????# ####???????? #???# ????????????????? | | ?????# #??????????#?#???# ????????????????? | | ????# ##??????????# ??## ????????????????? | | ##### #?????????### ?## ?????????????????? | | ## #?????????# ## #?????????????????? | | ### ?????????# =%= %#??????????????????? | | # #?## ?????????# r##?????????????????? | | # #??## ????????# ####??????????????? | | # #???# ????????# d # ###????????????? | | # #???## ?????????# d ##?####??????? | | # #????#### ????????# ## ###????? | | ##???????# ?????????# ##???? | | #???????? ??????????# #???? | | #???????? ???????#### #???? | | ##?????????????????# # = #????? | | ##?????????????##### % ######????? | | #####?????????# = ##*!###?????????? | | # ##????????# #### @ ##%*#???????????? | | # #????##### #??# ##[[#???????????? | | ## #????# #??# ### #???????????? | | ## """ ###### #####??# ###?# ############ | | # """ #??????# ####???# !%= = =%! | | # """ ###### #?????? ??????# [ ! | | #?#### #### #????############## | | ##?# ???????????????????? | | # ##?# g ???????????????????? | | #### ### ####### #????????????????????? | | ???## ## #?????? #####????????????????????? | | ##?## #????? ##????????????????????????? | | ### #####????? #??????????????????????????? | | ## ##????????? #???????????????????????????? | | #????????????????????????????????????????? | | #????????????????????????????????????????? | | ##### #????????????????????????????????????????? | | ##??### #????????????????????????????????????????? | | ###??# #????????????????????????????????????????? | | #??# #????????????????????????????????????????? | | #??# ###??????????????????????????????????????? | | #??# #??????????????????????????????????????? | | ###??### #?????????????????????????????????????? | | ##??????# ##?????????????????????????????????????? | | #??????? #??????????????????????????????????????? | +----------------------------------------------------+ Best States ------------- Heat Dissipation 25 Energy Generation 12 Energy Capacity 265 Matter Stores 300 Matter Capacity 300 Sight Range 16 Terrain Scan Density 10 Armor Coverage 150 Weapon Shielding 33 Evasion (%) 40 Recoil Reduction 2 Item Schematics ----------------- None Robot Schematics ------------------ None Fabricated ------------ Nothing Alien Tech Used ----------------- None Achievements -------------- None Challenges ------------ None Game ------ Seed QuantumFocalSabre Manual? 0 Play Time 00:13:53 Cumulative 113.0 hours Start 2021.04.04 @ 14:15:01 End 2021.04.04 @ 14:28:17 Sessions 1 Manual Loads 0 Difficulty Rogue Special Mode None Game No. 55 Rogue 55 Adventurer 0 Explorer 0 Win Type - Total 2 Types 1/0/1/0/0/0/0/0/0 Lore% 50 Gallery% 51 Achievement% 51 Wizard Run 0 Options --------- ASCII 0 Keyboard 1 Movement Vi Keybinds 0 Fullscreen 2 Font 12/Smallcaps Map View 60x54 Tactical HUD 0 Map Filters NONE Filters NONE Steam 1 RUN: 480cfd89-ec8d-4cbd-b1e0-e7bbbf760b46